[Event "*** SCC Grand Prix: Titled Tuesday Blitz"]
[Site "Chess.com"]
[Date "2020.09.08"]
[Round "2"]
[White "Karina_Ivanova"]
[Black "TrickyFortem"]
[Result "1/2-1/2"]
[WhiteElo "2249"]
[BlackElo "2453"]
[TimeControl "180+1"]
[EndTime "10:20:41 PDT"]
[Termination "Game drawn - insufficient material"]

1. d4 {[%clk 0:02:55.8]} 1... d5 {[%clk 0:02:59.7]} 2. Nf3 {[%clk 0:02:55]} 2...
e6 {[%clk 0:03:00.1]} 3. g3 {[%clk 0:02:53.7]} 3... c5 {[%clk 0:03:00.4]} 4. Bg2
{[%clk 0:02:53.3]} 4... Nf6 {[%clk 0:03:01]} 5. O-O {[%clk 0:02:52.8]} 5... cxd4
{[%clk 0:03:01.1]} 6. Nxd4 {[%clk 0:02:52.6]} 6... Be7 {[%clk 0:03:01.8]} 7. c4
{[%clk 0:02:52.1]} 7... dxc4 {[%clk 0:02:59]} 8. Nc3 {[%clk 0:02:46.9]} 8... O-O
{[%clk 0:02:58.6]} 9. Ndb5 {[%clk 0:02:41.5]} 9... Qa5 {[%clk 0:02:54.5]} 10.
Bf4 {[%clk 0:02:36.1]} 10... Na6 {[%clk 0:02:54.3]} 11. Qa4 {[%clk 0:02:31.8]}
11... Qxa4 {[%clk 0:02:51.3]} 12. Nxa4 {[%clk 0:02:31.6]} 12... Bd7 {[%clk
0:02:48.6]} 13. Nac3 {[%clk 0:02:31.4]} 13... Bc6 {[%clk 0:02:47.9]} 14. Bxc6
{[%clk 0:02:25.9]} 14... bxc6 {[%clk 0:02:48.8]} 15. Nd4 {[%clk 0:02:20.7]}
15... Rac8 {[%clk 0:02:48.5]} 16. Rfd1 {[%clk 0:02:08.2]} 16... Nd5 {[%clk
0:02:46.7]} 17. Bd2 {[%clk 0:02:07.9]} 17... Bf6 {[%clk 0:02:45.6]} 18. Be1
{[%clk 0:02:03.4]} 18... Rfd8 {[%clk 0:02:41.3]} 19. Ne4 {[%clk 0:01:59.5]}
19... Be5 {[%clk 0:02:37.6]} 20. f4 {[%clk 0:01:58.6]} 20... Bc7 {[%clk
0:02:33.4]} 21. Bf2 {[%clk 0:01:48.1]} 21... Bb6 {[%clk 0:02:32.5]} 22. Rac1
{[%clk 0:01:44.5]} 22... Ndb4 {[%clk 0:02:19.7]} 23. a3 {[%clk 0:01:31.6]} 23...
Nd5 {[%clk 0:02:13.9]} 24. Rxc4 {[%clk 0:01:21.4]} 24... c5 {[%clk 0:02:04.1]}
25. Nb3 {[%clk 0:01:10.3]} 25... Kf8 {[%clk 0:01:50.4]} 26. Nexc5 {[%clk
0:01:04.3]} 26... Nxc5 {[%clk 0:01:50.2]} 27. Bxc5+ {[%clk 0:01:02.7]} 27... Ke8
{[%clk 0:01:50]} 28. Bxb6 {[%clk 0:00:56.5]} 28... Rxc4 {[%clk 0:01:46.7]} 29.
Bxd8 {[%clk 0:00:56.2]} 29... Kxd8 {[%clk 0:01:47.6]} 30. Kf2 {[%clk 0:00:47.3]}
30... Ke7 {[%clk 0:01:45]} 31. Rc1 {[%clk 0:00:45.3]} 31... Ra4 {[%clk
0:01:38.9]} 32. Nc5 {[%clk 0:00:39.8]} 32... Rd4 {[%clk 0:01:34.4]} 33. Rc2
{[%clk 0:00:27.5]} 33... f5 {[%clk 0:01:25.9]} 34. Nd3 {[%clk 0:00:24.4]} 34...
Re4 {[%clk 0:01:10.8]} 35. Ne5 {[%clk 0:00:23.1]} 35... g5 {[%clk 0:01:10.8]}
36. Nd3 {[%clk 0:00:16.7]} 36... gxf4 {[%clk 0:01:10.6]} 37. gxf4 {[%clk
0:00:16.7]} 37... Nxf4 {[%clk 0:01:11]} 38. Nxf4 {[%clk 0:00:16.7]} 38... Rxf4+
{[%clk 0:01:11.9]} 39. Kg3 {[%clk 0:00:15.7]} 39... Rg4+ {[%clk 0:01:12.5]} 40.
Kf3 {[%clk 0:00:15.8]} 40... Kd6 {[%clk 0:01:12.9]} 41. Rd2+ {[%clk 0:00:15.6]}
41... Kc6 {[%clk 0:01:12.9]} 42. Rc2+ {[%clk 0:00:15.5]} 42... Kb6 {[%clk
0:01:11.4]} 43. Rd2 {[%clk 0:00:15.2]} 43... Kc6 {[%clk 0:01:10.2]} 44. Rc2+
{[%clk 0:00:15.1]} 44... Kd5 {[%clk 0:01:10.1]} 45. Rc7 {[%clk 0:00:14.3]} 45...
Rh4 {[%clk 0:01:10.6]} 46. Rxa7 {[%clk 0:00:13.5]} 46... Rxh2 {[%clk 0:01:10.5]}
47. b4 {[%clk 0:00:12.3]} 47... h5 {[%clk 0:01:09.3]} 48. Kg3 {[%clk 0:00:11.5]}
48... Rxe2 {[%clk 0:01:08.2]} 49. b5 {[%clk 0:00:10.5]} 49... Ke4 {[%clk
0:01:03.5]} 50. a4 {[%clk 0:00:07.3]} 50... f4+ {[%clk 0:01:03.8]} 51. Kh4
{[%clk 0:00:06.7]} 51... Rh2+ {[%clk 0:01:01.9]} 52. Kg5 {[%clk 0:00:06.4]}
52... f3 {[%clk 0:01:02.1]} 53. b6 {[%clk 0:00:05.5]} 53... Rb2 {[%clk
0:00:57.8]} 54. a5 {[%clk 0:00:05]} 54... f2 {[%clk 0:00:49.3]} 55. Rf7 {[%clk
0:00:04.4]} 55... Rb5+ {[%clk 0:00:49.7]} 56. Kg6 {[%clk 0:00:02.7]} 56... Rxa5
{[%clk 0:00:50.1]} 57. b7 {[%clk 0:00:02.2]} 57... Rb5 {[%clk 0:00:49.9]} 58.
Rxf2 {[%clk 0:00:02]} 58... Rxb7 {[%clk 0:00:49]} 59. Kxh5 {[%clk 0:00:02.9]}
59... Rg7 {[%clk 0:00:48.2]} 60. Re2+ {[%clk 0:00:02.8]} 60... Kf5 {[%clk
0:00:48.4]} 61. Rf2+ {[%clk 0:00:03]} 61... Ke5 {[%clk 0:00:48.7]} 62. Re2+
{[%clk 0:00:03.2]} 62... Kd6 {[%clk 0:00:49]} 63. Rd2+ {[%clk 0:00:03.2]} 63...
Ke7 {[%clk 0:00:49.2]} 64. Re2 {[%clk 0:00:03.6]} 64... Rg1 {[%clk 0:00:49.3]}
65. Kh4 {[%clk 0:00:03.2]} 65... Kf6 {[%clk 0:00:47.5]} 66. Rf2+ {[%clk
0:00:03.3]} 66... Kg6 {[%clk 0:00:47.9]} 67. Re2 {[%clk 0:00:03]} 67... Kf7
{[%clk 0:00:48]} 68. Rf2+ {[%clk 0:00:03]} 68... Ke7 {[%clk 0:00:48.6]} 69. Re2
{[%clk 0:00:03.4]} 69... Rf1 {[%clk 0:00:48.8]} 70. Kg4 {[%clk 0:00:03.2]} 70...
Kf6 {[%clk 0:00:49.2]} 71. Rd2 {[%clk 0:00:03]} 71... Rf5 {[%clk 0:00:41.6]} 72.
Re2 {[%clk 0:00:03]} 72... e5 {[%clk 0:00:40.9]} 73. Rd2 {[%clk 0:00:02]} 73...
Ke6 {[%clk 0:00:38]} 74. Rd1 {[%clk 0:00:01.8]} 74... Rf8 {[%clk 0:00:35.3]} 75.
Re1 {[%clk 0:00:01.6]} 75... Rf2 {[%clk 0:00:35]} 76. Kg3 {[%clk 0:00:01.4]}
76... Rd2 {[%clk 0:00:34.4]} 77. Kg4 {[%clk 0:00:02.3]} 77... Kd5 {[%clk
0:00:34]} 78. Kg3 {[%clk 0:00:02.3]} 78... e4 {[%clk 0:00:33]} 79. Kf4 {[%clk
0:00:01.9]} 79... Rf2+ {[%clk 0:00:33.1]} 80. Ke3 {[%clk 0:00:02.2]} 80... Rf3+
{[%clk 0:00:32.2]} 81. Ke2 {[%clk 0:00:03.1]} 81... Rh3 {[%clk 0:00:31.3]} 82.
Rd1+ {[%clk 0:00:04]} 82... Ke5 {[%clk 0:00:31.6]} 83. Rg1 {[%clk 0:00:04.1]}
83... Rh2+ {[%clk 0:00:31]} 84. Ke3 {[%clk 0:00:03.5]} 84... Rh3+ {[%clk
0:00:31.5]} 85. Ke2 {[%clk 0:00:03.6]} 85... Ra3 {[%clk 0:00:32.4]} 86. Rg8
{[%clk 0:00:02.8]} 86... Kd4 {[%clk 0:00:27.2]} 87. Rd8+ {[%clk 0:00:01.9]}
87... Kc3 {[%clk 0:00:27.3]} 88. Rc8+ {[%clk 0:00:02.1]} 88... Kd4 {[%clk
0:00:26.6]} 89. Rd8+ {[%clk 0:00:02.5]} 89... Ke5 {[%clk 0:00:26.1]} 90. Re8+
{[%clk 0:00:02.5]} 90... Kf4 {[%clk 0:00:27]} 91. Rf8+ {[%clk 0:00:02.8]} 91...
Kg3 {[%clk 0:00:27.7]} 92. Rg8+ {[%clk 0:00:03]} 92... Kh3 {[%clk 0:00:28.2]}
93. Rh8+ {[%clk 0:00:03.1]} 93... Kg4 {[%clk 0:00:28.1]} 94. Rg8+ {[%clk
0:00:03.3]} 94... Kf5 {[%clk 0:00:28.6]} 95. Rf8+ {[%clk 0:00:03]} 95... Kg6
{[%clk 0:00:29.2]} 96. Rg8+ {[%clk 0:00:03.1]} 96... Kf7 {[%clk 0:00:28.5]} 97.
Rg4 {[%clk 0:00:03]} 97... Ra4 {[%clk 0:00:28.7]} 98. Ke3 {[%clk 0:00:02.7]}
98... Kf6 {[%clk 0:00:29.2]} 99. Rxe4 {[%clk 0:00:03.3]} 99... Ra3+ {[%clk
0:00:30]} 100. Kf4 {[%clk 0:00:03.3]} 100... Rh3 {[%clk 0:00:25.1]} 101. Rd4
{[%clk 0:00:04.2]} 101... Rh4+ {[%clk 0:00:25.2]} 102. Ke3 {[%clk 0:00:04.2]}
102... Rh1 {[%clk 0:00:25.5]} 103. Rf4+ {[%clk 0:00:04]} 103... Ke5 {[%clk
0:00:26]} 104. Re4+ {[%clk 0:00:04.2]} 104... Kd5 {[%clk 0:00:26.5]} 105. Rf4
{[%clk 0:00:04.3]} 105... Rh3+ {[%clk 0:00:26.4]} 106. Rf3 {[%clk 0:00:04.3]}
106... Rxf3+ {[%clk 0:00:26.7]} 107. Kxf3 {[%clk 0:00:05.2]} 1/2-1/2

[Event "*** SCC Grand Prix: Titled Tuesday Blitz"]
[Site "Chess.com"]
[Date "2020.09.08"]
[Round "2"]
[White "kinga2008"]
[Black "BAS8892"]
[Result "0-1"]
[WhiteElo "2146"]
[BlackElo "2613"]
[TimeControl "180+1"]
[EndTime "10:20:48 PDT"]
[Termination "BAS8892 won by checkmate"]

1. e4 {[%clk 0:02:59.3]} 1... c6 {[%clk 0:02:59.9]} 2. d4 {[%clk 0:02:58.9]}
2... d5 {[%clk 0:02:59.8]} 3. Nc3 {[%clk 0:02:57.3]} 3... dxe4 {[%clk
0:02:59.8]} 4. Nxe4 {[%clk 0:02:52.6]} 4... Bf5 {[%clk 0:02:59.6]} 5. Ng3 {[%clk
0:02:47.6]} 5... Bg6 {[%clk 0:02:59.5]} 6. h4 {[%clk 0:02:48.2]} 6... h6 {[%clk
0:02:59.1]} 7. Nh3 {[%clk 0:02:47.9]} 7... e5 {[%clk 0:02:55.4]} 8. dxe5 {[%clk
0:02:35.5]} 8... Qa5+ {[%clk 0:02:52.8]} 9. c3 {[%clk 0:02:31.8]} 9... Qxe5+
{[%clk 0:02:51.9]} 10. Qe2 {[%clk 0:02:31.1]} 10... Nd7 {[%clk 0:02:50.7]} 11.
Bf4 {[%clk 0:02:29]} 11... Qxe2+ {[%clk 0:02:47.6]} 12. Bxe2 {[%clk 0:02:20.7]}
12... O-O-O {[%clk 0:02:47.3]} 13. O-O-O {[%clk 0:02:13]} 13... Ngf6 {[%clk
0:02:46.9]} 14. Bc4 {[%clk 0:02:09.3]} 14... Bc5 {[%clk 0:02:43.3]} 15. Bd6
{[%clk 0:01:57.3]} 15... Bxd6 {[%clk 0:02:38.3]} 16. Rxd6 {[%clk 0:01:56.1]}
16... Ne5 {[%clk 0:02:38.3]} 17. Rxd8+ {[%clk 0:01:48.9]} 17... Rxd8 {[%clk
0:02:37.6]} 18. Be2 {[%clk 0:01:49.5]} 18... Nd3+ {[%clk 0:02:17]} 19. Bxd3
{[%clk 0:01:46.2]} 19... Bxd3 {[%clk 0:02:16.6]} 20. Nf4 {[%clk 0:01:45.7]}
20... Bh7 {[%clk 0:02:10.1]} 21. f3 {[%clk 0:01:42.3]} 21... g5 {[%clk
0:01:56.3]} 22. hxg5 {[%clk 0:01:42]} 22... hxg5 {[%clk 0:01:56.3]} 23. Nfh5
{[%clk 0:01:42.9]} 23... Nd5 {[%clk 0:01:56.3]} 24. Ng7 {[%clk 0:01:35.5]} 24...
Bg6 {[%clk 0:01:54.5]} 25. N7f5 {[%clk 0:01:28.4]} 25... Kc7 {[%clk 0:01:51.3]}
26. Re1 {[%clk 0:01:18.1]} 26... Nf4 {[%clk 0:01:49.9]} 27. Re7+ {[%clk
0:01:16.1]} 27... Kb6 {[%clk 0:01:49.5]} 28. Nd4 {[%clk 0:01:06.4]} 28... Nxg2
{[%clk 0:01:39.7]} 29. Ne4 {[%clk 0:00:59.7]} 29... Nf4 {[%clk 0:01:23.1]} 30.
Nxg5 {[%clk 0:00:52]} 30... c5 {[%clk 0:01:06.3]} 31. Nxf7 {[%clk 0:00:40.2]}
31... Rd5 {[%clk 0:01:01.3]} 32. Ne5 {[%clk 0:00:30.5]} 32... Rxe5 {[%clk
0:01:01.1]} 33. Rxe5 {[%clk 0:00:27.7]} 33... Nd3+ {[%clk 0:01:01]} 34. Kd2
{[%clk 0:00:28.6]} 34... Nxe5 {[%clk 0:01:01.1]} 35. Ne6 {[%clk 0:00:24.7]}
35... Nxf3+ {[%clk 0:00:59.2]} 36. Ke3 {[%clk 0:00:25]} 36... Ne5 {[%clk
0:00:59.1]} 37. b3 {[%clk 0:00:25.6]} 37... Bb1 {[%clk 0:00:57.4]} 38. a4 {[%clk
0:00:23.2]} 38... Bc2 {[%clk 0:00:56.8]} 39. b4 {[%clk 0:00:18.2]} 39... cxb4
{[%clk 0:00:56.7]} 40. cxb4 {[%clk 0:00:19.1]} 40... Bxa4 {[%clk 0:00:56.2]} 41.
Kd4 {[%clk 0:00:20]} 41... Nc6+ {[%clk 0:00:55.2]} 42. Kc3 {[%clk 0:00:20]}
42... a5 {[%clk 0:00:50.7]} 43. bxa5+ {[%clk 0:00:17.2]} 43... Kxa5 {[%clk
0:00:50.7]} 44. Nc5 {[%clk 0:00:17.5]} 44... b5 {[%clk 0:00:50.9]} 45. Nb7+
{[%clk 0:00:15]} 45... Kb6 {[%clk 0:00:51]} 46. Nd6 {[%clk 0:00:15.4]} 46... b4+
{[%clk 0:00:51.1]} 47. Kb2 {[%clk 0:00:16]} 47... Bb5 {[%clk 0:00:47.5]} 48. Ne4
{[%clk 0:00:12.4]} 48... Bd3 {[%clk 0:00:46.5]} 49. Nf2 {[%clk 0:00:11.3]} 49...
Bf5 {[%clk 0:00:46.3]} 50. Nd1 {[%clk 0:00:11.1]} 50... Kc5 {[%clk 0:00:46.5]}
51. Ne3 {[%clk 0:00:11.6]} 51... Be6 {[%clk 0:00:47]} 52. Nc2 {[%clk 0:00:11.5]}
52... b3 {[%clk 0:00:45.2]} 53. Na1 {[%clk 0:00:11.5]} 53... Kb4 {[%clk
0:00:45.1]} 54. Nxb3 {[%clk 0:00:12]} 54... Bxb3 {[%clk 0:00:44.7]} 55. Kc1
{[%clk 0:00:12.9]} 55... Kc3 {[%clk 0:00:43.2]} 56. Kb1 {[%clk 0:00:13]} 56...
Nd4 {[%clk 0:00:39.6]} 57. Ka1 {[%clk 0:00:13.2]} 57... Bc2 {[%clk 0:00:38.3]}
58. Ka2 {[%clk 0:00:13.3]} 58... Nb3 {[%clk 0:00:37.9]} 59. Ka3 {[%clk
0:00:13.7]} 59... Bb1 {[%clk 0:00:38.3]} 60. Ka4 {[%clk 0:00:13.6]} 60... Nd4
{[%clk 0:00:31]} 61. Ka3 {[%clk 0:00:07.4]} 61... Ne6 {[%clk 0:00:22]} 62. Ka4
{[%clk 0:00:04.4]} 62... Ba2 {[%clk 0:00:21.5]} 63. Ka3 {[%clk 0:00:03.5]} 63...
Bc4 {[%clk 0:00:20.1]} 64. Ka4 {[%clk 0:00:04]} 64... Nf4 {[%clk 0:00:17.4]} 65.
Ka5 {[%clk 0:00:03.5]} 65... Kb3 {[%clk 0:00:15.8]} 66. Kb6 {[%clk 0:00:01.9]}
66... Kb4 {[%clk 0:00:12.6]} 67. Kc6 {[%clk 0:00:02.4]} 67... Nd3 {[%clk
0:00:11.7]} 68. Kd6 {[%clk 0:00:02.7]} 68... Kb5 {[%clk 0:00:11.7]} 69. Ke7
{[%clk 0:00:02.2]} 69... Kc5 {[%clk 0:00:12.1]} 70. Kd7 {[%clk 0:00:02.4]} 70...
Kd5 {[%clk 0:00:11.5]} 71. Kc7 {[%clk 0:00:02.9]} 71... Ne5 {[%clk 0:00:10]} 72.
Kd8 {[%clk 0:00:02.9]} 72... Bb5 {[%clk 0:00:09.1]} 73. Ke7 {[%clk 0:00:03.1]}
73... Bd7 {[%clk 0:00:08.1]} 74. Kf6 {[%clk 0:00:03.4]} 74... Kd6 {[%clk
0:00:08.2]} 75. Kg5 {[%clk 0:00:02.5]} 75... Ke6 {[%clk 0:00:08.7]} 76. Kf4
{[%clk 0:00:01.9]} 76... Bc6 {[%clk 0:00:09.1]} 77. Kg5 {[%clk 0:00:01.7]} 77...
Nf7+ {[%clk 0:00:09.3]} 78. Kf4 {[%clk 0:00:02.3]} 78... Kf6 {[%clk 0:00:08.9]}
79. Ke3 {[%clk 0:00:02.5]} 79... Ke5 {[%clk 0:00:09.4]} 80. Kd2 {[%clk
0:00:02.9]} 80... Nd6 {[%clk 0:00:09.9]} 81. Kc3 {[%clk 0:00:03.4]} 81... Bd5
{[%clk 0:00:09.5]} 82. Kb4 {[%clk 0:00:03.8]} 82... Kd4 {[%clk 0:00:09.7]} 83.
Ka3 {[%clk 0:00:03]} 83... Kc3 {[%clk 0:00:09.6]} 84. Ka4 {[%clk 0:00:01.5]}
84... Bb3+ {[%clk 0:00:06.5]} 85. Ka5 {[%clk 0:00:01.2]} 85... Kc4 {[%clk
0:00:05.6]} 86. Kb6 {[%clk 0:00:01.6]} 86... Kd5 {[%clk 0:00:05.6]} 87. Ka5
{[%clk 0:00:01.7]} 87... Kc5 {[%clk 0:00:05.3]} 88. Ka6 {[%clk 0:00:02]} 88...
Bc2 {[%clk 0:00:02.9]} 89. Ka5 {[%clk 0:00:02]} 89... Nb7+ {[%clk 0:00:02.5]}
90. Ka6 {[%clk 0:00:02.3]} 90... Kc6 {[%clk 0:00:02.9]} 91. Ka7 {[%clk
0:00:02.3]} 91... Bd3 {[%clk 0:00:03]} 92. Kb8 {[%clk 0:00:02.3]} 92... Bf5
{[%clk 0:00:02.4]} 93. Ka7 {[%clk 0:00:02.4]} 93... Nc5 {[%clk 0:00:02.5]} 94.
Kb8 {[%clk 0:00:02.7]} 94... Kb6 {[%clk 0:00:03]} 95. Ka8 {[%clk 0:00:01.1]}
95... Bd7 {[%clk 0:00:03.4]} 96. Kb8 {[%clk 0:00:01.6]} 96... Be6 {[%clk
0:00:03.9]} 97. Ka8 {[%clk 0:00:01.9]} 97... Bc8 {[%clk 0:00:04.4]} 98. Kb8
{[%clk 0:00:02.5]} 98... Ba6 {[%clk 0:00:04.7]} 99. Ka8 {[%clk 0:00:02.9]} 99...
Bb7+ {[%clk 0:00:05.3]} 100. Kb8 {[%clk 0:00:03.5]} 100... Nd7# {[%clk 0:00:06]}
0-1

[Event "*** SCC Grand Prix: Titled Tuesday Blitz"]
[Site "Chess.com"]
[Date "2020.09.08"]
[Round "2"]
[White "Sankalp_Gupta2003"]
[Black "Mostii"]
[Result "1-0"]
[WhiteElo "2745"]
[BlackElo "2393"]
[TimeControl "180+1"]
[EndTime "10:21:39 PDT"]
[Termination "Sankalp_Gupta2003 won by checkmate"]

1. e4 {[%clk 0:03:00.9]} 1... e6 {[%clk 0:03:00.9]} 2. d4 {[%clk 0:03:00.8]}
2... d5 {[%clk 0:03:01.1]} 3. Nd2 {[%clk 0:03:01.3]} 3... Nf6 {[%clk 0:03:00.4]}
4. e5 {[%clk 0:03:01.9]} 4... Nfd7 {[%clk 0:03:01]} 5. Bd3 {[%clk 0:03:02.5]}
5... c5 {[%clk 0:03:01.9]} 6. c3 {[%clk 0:03:03.4]} 6... b5 {[%clk 0:03:02.7]}
7. Bxb5 {[%clk 0:02:58.9]} 7... Qb6 {[%clk 0:03:02.6]} 8. Bxd7+ {[%clk
0:02:57.8]} 8... Nxd7 {[%clk 0:03:03.5]} 9. Ne2 {[%clk 0:02:57.1]} 9... cxd4
{[%clk 0:03:03.8]} 10. cxd4 {[%clk 0:02:58]} 10... Ba6 {[%clk 0:03:04.3]} 11.
O-O {[%clk 0:02:54.6]} 11... Bxe2 {[%clk 0:03:03.7]} 12. Qxe2 {[%clk 0:02:55.5]}
12... Qxd4 {[%clk 0:03:04.2]} 13. Nf3 {[%clk 0:02:54.5]} 13... Qb6 {[%clk
0:03:04.8]} 14. a3 {[%clk 0:02:51.9]} 14... a5 {[%clk 0:03:01.7]} 15. Qd2 {[%clk
0:02:37.4]} 15... Be7 {[%clk 0:02:50]} 16. Qf4 {[%clk 0:02:13.2]} 16... O-O
{[%clk 0:02:45.5]} 17. Qg3 {[%clk 0:02:13.8]} 17... Rfc8 {[%clk 0:02:39.1]} 18.
Bh6 {[%clk 0:02:12.8]} 18... Bf8 {[%clk 0:02:39.1]} 19. Rab1 {[%clk 0:02:13.1]}
19... Rc2 {[%clk 0:02:23.8]} 20. b3 {[%clk 0:02:08.1]} 20... Rac8 {[%clk
0:02:22.4]} 21. h4 {[%clk 0:02:07.8]} 21... Nc5 {[%clk 0:01:53]} 22. h5 {[%clk
0:01:58.8]} 22... Ne4 {[%clk 0:01:50.6]} 23. Qg4 {[%clk 0:01:48.1]} 23... Nxf2
{[%clk 0:01:37.4]} 24. Rxf2 {[%clk 0:01:47.9]} 24... Qxf2+ {[%clk 0:01:18.1]}
25. Kh1 {[%clk 0:01:45]} 25... Qxg2+ {[%clk 0:01:02.2]} 26. Qxg2 {[%clk
0:01:45.9]} 26... Rxg2 {[%clk 0:01:01.7]} 27. Kxg2 {[%clk 0:01:46.8]} 27... gxh6
{[%clk 0:01:02.4]} 28. b4 {[%clk 0:01:47.7]} 28... axb4 {[%clk 0:01:00.5]} 29.
axb4 {[%clk 0:01:48.6]} 29... Rb8 {[%clk 0:00:54.5]} 30. b5 {[%clk 0:01:49]}
30... Bc5 {[%clk 0:00:54.2]} 31. Ne1 {[%clk 0:01:46.3]} 31... Kf8 {[%clk
0:00:53.2]} 32. Nd3 {[%clk 0:01:46.3]} 32... Bd4 {[%clk 0:00:52.7]} 33. Rb4
{[%clk 0:01:45.3]} 33... Bb6 {[%clk 0:00:48.5]} 34. Kf3 {[%clk 0:01:34.4]} 34...
Ke7 {[%clk 0:00:48.5]} 35. Rg4 {[%clk 0:01:33.8]} 35... Ba5 {[%clk 0:00:45]} 36.
Rg7 {[%clk 0:01:33.8]} 36... Rxb5 {[%clk 0:00:45]} 37. Rxh7 {[%clk 0:01:34.2]}
37... Rb3 {[%clk 0:00:43.4]} 38. Ke2 {[%clk 0:01:34.2]} 38... Bb6 {[%clk
0:00:31.3]} 39. Rxh6 {[%clk 0:01:32.2]} 39... Ra3 {[%clk 0:00:31.6]} 40. Rh8
{[%clk 0:01:29.2]} 40... Ra2+ {[%clk 0:00:31.7]} 41. Kf3 {[%clk 0:01:26.6]}
41... Ra3 {[%clk 0:00:31.8]} 42. Ke2 {[%clk 0:01:26.7]} 42... Ra2+ {[%clk
0:00:32.2]} 43. Kf1 {[%clk 0:01:01.8]} 43... Rd2 {[%clk 0:00:29.3]} 44. Nb4
{[%clk 0:00:57.5]} 44... Rf2+ {[%clk 0:00:24.2]} 45. Ke1 {[%clk 0:00:57.7]}
45... Rh2 {[%clk 0:00:19.4]} 46. Kd1 {[%clk 0:00:53.6]} 46... Bc5 {[%clk
0:00:15.5]} 47. Nc6+ {[%clk 0:00:51]} 47... Kd7 {[%clk 0:00:15.9]} 48. Nb8+
{[%clk 0:00:51.6]} 48... Kc7 {[%clk 0:00:12.6]} 49. h6 {[%clk 0:00:36.3]} 49...
Bd4 {[%clk 0:00:12.4]} 50. Na6+ {[%clk 0:00:36.6]} 50... Kb6 {[%clk 0:00:11.6]}
51. Nb4 {[%clk 0:00:30.3]} 51... Bxe5 {[%clk 0:00:11.7]} 52. Rh7 {[%clk
0:00:31]} 52... Kc5 {[%clk 0:00:11]} 53. Nd3+ {[%clk 0:00:30.6]} 53... Kd6
{[%clk 0:00:11.4]} 54. Ke1 {[%clk 0:00:27.5]} 54... Bd4 {[%clk 0:00:08.5]} 55.
Nf4 {[%clk 0:00:23.6]} 55... Be3 {[%clk 0:00:07.7]} 56. Nd3 {[%clk 0:00:20.9]}
56... Rxh6 {[%clk 0:00:07.3]} 57. Rxf7 {[%clk 0:00:21.1]} 57... Bd4 {[%clk
0:00:07]} 58. Rf8 {[%clk 0:00:21.4]} 58... Rh3 {[%clk 0:00:06.9]} 59. Ke2 {[%clk
0:00:19.5]} 59... e5 {[%clk 0:00:06.9]} 60. Rf6+ {[%clk 0:00:19.2]} 60... Ke7
{[%clk 0:00:07]} 61. Ra6 {[%clk 0:00:20.1]} 61... e4 {[%clk 0:00:07.2]} 62. Nf4
{[%clk 0:00:20.5]} 62... Rh2+ {[%clk 0:00:06.9]} 63. Ke1 {[%clk 0:00:19.6]}
63... Rh1+ {[%clk 0:00:06.9]} 64. Ke2 {[%clk 0:00:19.7]} 64... Rh2+ {[%clk
0:00:07.3]} 65. Kd1 {[%clk 0:00:20.2]} 65... Rh1+ {[%clk 0:00:06.4]} 66. Kc2
{[%clk 0:00:19.5]} 66... e3 {[%clk 0:00:06.6]} 67. Nxd5+ {[%clk 0:00:19.6]}
67... Kd7 {[%clk 0:00:07]} 68. Kd3 {[%clk 0:00:20]} 68... e2 {[%clk 0:00:07.2]}
69. Kxe2 {[%clk 0:00:19.8]} 69... Bc5 {[%clk 0:00:07.6]} 70. Kd3 {[%clk
0:00:19.8]} 70... Bd6 {[%clk 0:00:07.8]} 71. Ne3 {[%clk 0:00:19]} 71... Rh3
{[%clk 0:00:07.6]} 72. Ke4 {[%clk 0:00:19.4]} 72... Rh4+ {[%clk 0:00:07.6]} 73.
Kf5 {[%clk 0:00:19.2]} 73... Rf4+ {[%clk 0:00:07.4]} 74. Kg6 {[%clk 0:00:18.9]}
74... Re4 {[%clk 0:00:07.8]} 75. Nf5 {[%clk 0:00:19.3]} 75... Re6+ {[%clk
0:00:08.1]} 76. Kf7 {[%clk 0:00:18.9]} 76... Re1 {[%clk 0:00:03.2]} 77. Rxd6+
{[%clk 0:00:18.9]} 77... Kc7 {[%clk 0:00:04.1]} 78. Rd2 {[%clk 0:00:18.5]} 78...
Rf1 {[%clk 0:00:05]} 79. Ke6 {[%clk 0:00:18.2]} 79... Kc6 {[%clk 0:00:05.7]} 80.
Rc2+ {[%clk 0:00:18.3]} 80... Kb5 {[%clk 0:00:05.9]} 81. Nd4+ {[%clk 0:00:18.7]}
81... Kb4 {[%clk 0:00:06]} 82. Kd5 {[%clk 0:00:19]} 82... Rh1 {[%clk 0:00:06.2]}
83. Rb2+ {[%clk 0:00:19.3]} 83... Kc3 {[%clk 0:00:07.1]} 84. Rc2+ {[%clk
0:00:18.3]} 84... Kb4 {[%clk 0:00:08]} 85. Nf3 {[%clk 0:00:08.7]} 85... Rh5+
{[%clk 0:00:08.9]} 86. Ne5 {[%clk 0:00:09.2]} 86... Kb3 {[%clk 0:00:08.7]} 87.
Rc8 {[%clk 0:00:09.7]} 87... Rh1 {[%clk 0:00:08.8]} 88. Kd4 {[%clk 0:00:09.5]}
88... Rh4+ {[%clk 0:00:08.2]} 89. Kd3 {[%clk 0:00:09.4]} 89... Rh3+ {[%clk
0:00:08.4]} 90. Kd2 {[%clk 0:00:09.8]} 90... Rh2+ {[%clk 0:00:08.6]} 91. Ke3
{[%clk 0:00:10.4]} 91... Rh3+ {[%clk 0:00:08.9]} 92. Nf3 {[%clk 0:00:09.8]}
92... Rh1 {[%clk 0:00:08.9]} 93. Kd3 {[%clk 0:00:09.9]} 93... Rh3 {[%clk
0:00:08.5]} 94. Ke4 {[%clk 0:00:10.4]} 94... Kb4 {[%clk 0:00:08.1]} 95. Nd4
{[%clk 0:00:10.8]} 95... Rh4+ {[%clk 0:00:07.5]} 96. Ke5 {[%clk 0:00:11.5]}
96... Rh5+ {[%clk 0:00:07.2]} 97. Nf5 {[%clk 0:00:12.2]} 97... Kb5 {[%clk
0:00:07.5]} 98. Ke6 {[%clk 0:00:11.4]} 98... Rh1 {[%clk 0:00:07.9]} 99. Rf8
{[%clk 0:00:11.3]} 99... Re1+ {[%clk 0:00:07]} 100. Kd5 {[%clk 0:00:11.9]}
100... Rh1 {[%clk 0:00:06.7]} 101. Nd4+ {[%clk 0:00:12.4]} 101... Kb6 {[%clk
0:00:07.3]} 102. Rf6+ {[%clk 0:00:12.4]} 102... Kc7 {[%clk 0:00:07.3]} 103. Nb5+
{[%clk 0:00:12.3]} 103... Kd7 {[%clk 0:00:07.5]} 104. Rf7+ {[%clk 0:00:11.7]}
104... Ke8 {[%clk 0:00:07.6]} 105. Nd6+ {[%clk 0:00:11.7]} 105... Kd8 {[%clk
0:00:06.5]} 106. Nf5 {[%clk 0:00:09.3]} 106... Rd1+ {[%clk 0:00:06.6]} 107. Nd4
{[%clk 0:00:09.7]} 107... Rd2 {[%clk 0:00:05.6]} 108. Ra7 {[%clk 0:00:09.8]}
108... Ke8 {[%clk 0:00:05.6]} 109. Ke6 {[%clk 0:00:09.7]} 109... Kf8 {[%clk
0:00:04.9]} 110. Kf6 {[%clk 0:00:09.8]} 110... Rf2+ {[%clk 0:00:03]} 111. Nf5
{[%clk 0:00:09.8]} 111... Ke8 {[%clk 0:00:03.9]} 112. Ke6 {[%clk 0:00:09.7]}
112... Kd8 {[%clk 0:00:04]} 113. Ra3 {[%clk 0:00:09.5]} 113... Re2+ {[%clk
0:00:03.9]} 114. Kd6 {[%clk 0:00:09.1]} 114... Rd2+ {[%clk 0:00:04.2]} 115. Ke6
{[%clk 0:00:06.2]} 115... Re2+ {[%clk 0:00:04]} 116. Ne3 {[%clk 0:00:06.7]}
116... Kc7 {[%clk 0:00:03.1]} 117. Rb3 {[%clk 0:00:07.4]} 117... Kc6 {[%clk
0:00:02.6]} 118. Rc3+ {[%clk 0:00:08]} 118... Kb7 {[%clk 0:00:02.7]} 119. Kd6
{[%clk 0:00:08.2]} 119... Ka6 {[%clk 0:00:03.6]} 120. Kc6 {[%clk 0:00:07.9]}
120... Re1 {[%clk 0:00:03.1]} 121. Ra3# {[%clk 0:00:07.7]} 1-0